Cogmind - Beta 15 @@@ ROGUE MODE // 2025.10.12 @ 11:21:26 Player: GermanMO Result: Destroyed by G-47 Trooper with Particle Gun Performance ------------- Evolutions (2) 1000 Regions Visited (3) 600 Robots Destroyed (54) 270 Value Destroyed (1062) 1062 Prototype IDs (2) 40 Alien Tech Used (0) 0 Bonus (0) 0 TOTAL SCORE: 2972 Bonus ------- None Cogmind --------- Core Integrity 0/550 Matter 289/300 Energy 100/100 System Corruption 0% Temperature Cool (9) Movement Core (700) Ox13 Location -8/Materials Parts ------- > --- POWER (1) -------- (None) > --- PROPULSION (4) --- (None) > --- UTILITY (3) ------ High-capacity Storage Unit > --- WEAPON (3) ------- (None) > --- INVENTORY (20) --- Heat Sink Improved Terrain Scanner Improved Terrain Scanner Advanced Terrain Scan Processor Advanced Terrain Scan Processor Advanced Terrain Scan Processor Advanced Terrain Scan Processor Peak State ------------ > --- POWER ------------ Heavy Ion Engine > --- PROPULSION ------- Light Treads Light Treads Light Treads > --- UTILITY ---------- High-capacity Storage Unit Structural Scanner Medium Armor Plating > --- WEAPON ----------- Improved EM Shotgun Improved EM Shotgun Rocket Launcher > --- INVENTORY -------- Heat Sink Improved Terrain Scanner Improved Terrain Scanner Terrain Scan Processor Terrain Scan Processor Terrain Scan Processor Rocket Launcher [Rating: 19] Favorites ----------- Power Heavy Ion Engine Engine Heavy Ion Engine Propulsion Light Treads Treads Light Treads Leg Aluminum Leg Wheel Wheel Utility High-capacity Storage Unit Device Structural Scanner Storage High-capacity Storage Unit Processor Signal Interpreter Protection Medium Armor Plating Weapon Light Assault Rifle Energy Gun Improved EM Shotgun Energy Cannon Beam Cannon Ballistic Gun Light Assault Rifle Launcher Rocket Launcher Special Weapon Mining Laser Build | -11 -10 -9 -8 ------- Run | Yrd Mat Mat Mat Slots Evolved 4 | . . 2 2 Power . | . . . . Propulsion 2 | . . . 2 Utility 1 | . . 1 . Weapon 1 | . . 1 . Parts Attached 41 | 5 14 16 6 Power 3 | 1 1 1 . Engine 3 | 1 1 1 . Core . | . . . . Reactor . | . . . . Propulsion 13 | 2 5 4 2 Treads 5 | . . 4 1 Leg 1 | . 1 . . Wheel 7 | 2 4 . 1 Hover . | . . . . Flight . | . . . . Utility 9 | . 3 6 . Device 4 | . 2 2 . Storage 1 | . 1 . . Processor 1 | . . 1 . Hackware . | . . . . Protection 3 | . . 3 . Artifact . | . . . . Weapon 16 | 2 5 5 4 Energy Gun 4 | . 1 . 3 Energy Cannon 1 | . 1 . . Ballistic Gun 6 | 2 1 3 . Ballistic Cannon . | . . . . Launcher 3 | . 1 1 1 Special Weapon 2 | . 1 1 . Impact Weapon . | . . . . Slashing Weapon . | . . . . Piercing Weapon . | . . . . Special Melee Weapon . | . . . . Unidentified Prototypes 2 | . . 1 1 Parts Lost 30 | . 9 10 11 Power 3 | . 1 1 1 Propulsion 12 | . 4 4 4 Utility 4 | . 1 2 1 Weapon 11 | . 3 3 5 Highest Loss Streak 7 | . 3 4 7 To Critical Strikes . | . . . . Average Backups 5 | 1 4 6 7 Power . | . . . . Propulsion . | . . . . Utility 4 | . 2 5 6 Weapon 1 | . 1 . . Tool/Special . | . . . . Unused Backups 10 | . . . 10 Power . | . . . . Propulsion 1 | . . . 1 Utility 9 | . . . 9 Weapon . | . . . . Tool/Special . | . . . . Average Slot Usage (%) 68 | . 65 73 69 Engine 6 | . 6 4 7 Treads 9 | . . 15 18 Wheel 7 | . 15 3 . Device 7 | . 7 8 7 Storage 10 | . 12 11 9 Protection 3 | . . 6 7 Energy Gun 3 | . 1 . 11 Ballistic Gun 10 | . 12 15 1 Launcher 3 | . 2 4 4 Special Weapon 1 | . 3 . . Peak Build Rating 19 | 5 9 16 19 Average Rating 8 | 4 4 9 14 On Entrance 7 | . 5 7 16 Naked Turns . | . . . . Heaviest Build 66 | 8 49 66 66 Greatest Support 60 | 20 20 40 60 Greatest Overweight (x) 14 | . 14 14 14 Average Overweight (x) 2 | . 2 1 1 Largest Inventory Capacity 20 | 5 20 20 20 Average Capacity 18 | 5 18 20 20 Most Carried 10 | 5 7 8 10 Average Carried 5 | 1 4 6 7 Final Capacity 20 | 5 20 20 20 Final Carried 7 | 3 6 7 7 Class Distribution -------------------- 67% | Mutant 21% | Scavenger-Tank 11% | Scavenger-Mutant Dominant Class ---------------- Mutant | -10/Materials Scavenger-Mutant | -9/Materials Scavenger-Tank | -8/Materials Resources | -11 -10 -9 -8 ----------- Run | Yrd Mat Mat Mat Matter Collected 961 | 158 351 371 81 Remotely . | . . . . Salvage Created 1777 | 46 583 526 622 Parts 117 | 5 41 35 36 Haulers Intercepted 5 | . 2 2 1 Recyclers Shooed 2 | . . 2 . Parts Field Recycled . | . . . . Retrieved Matter . | . . . . Parts Self-Destructed . | . . . . Prevented . | . . . . Kills | -11 -10 -9 -8 ------- Run | Yrd Mat Mat Mat Combat Hostiles Destroyed 32 | . 11 12 9 Melee 1 | . . 1 . Guns 23 | . 8 8 7 AOE 8 | . 3 3 2 Classes Destroyed 9 | 1 6 2 . Worker 7 | . 5 . 2 Builder 3 | . 1 1 1 Tunneler 2 | 2 . . . Hauler 5 | . 2 2 1 Recycler 3 | . . 1 2 Watcher 2 | . 1 . 1 Swarmer 11 | . 3 4 4 Grunt 19 | . 8 6 5 Sentry 2 | . . 2 . Best Kill Streak 7 | 1 4 7 3 Combat Bots Only 3 | . 3 3 3 Max Kills in Single Turn 3 | 1 3 2 2 Gunslinging . | . . . . Exploded 3 | . 3 2 1 Melee 1 | . . 1 . Uniques/NPCs Destroyed . | . . . . Combat | -11 -10 -9 -8 -------- Run | Yrd Mat Mat Mat Hostile Shots Fired 394 | . 107 159 128 Missed 109 | . 32 39 38 Hits 285 | . 75 120 90 Melee 8 | . . . 8 Projectile 277 | . 75 120 82 Critical Strikes 11 | . . 4 7 Damage Taken 3701 | . 790 1358 1553 Core 1152 | . 234 365 553 Absorbed by Shields . | . . . . Core Remaining (%) 38 | 100 6 8 . Volleys Fired 248 | 11 131 68 38 Largest 2 | 2 2 2 2 Hottest 100 | 40 100 46 90 Shots Fired 312 | 22 138 89 63 Gun 281 | 22 118 79 62 Cannon 15 | . 15 . . Launcher 5 | . 1 3 1 Special 11 | . 4 7 . Kinetic 218 | 22 105 79 12 Thermal 39 | . 32 7 . Explosive 5 | . 1 3 1 Electromagnetic 50 | . . . 50 Robot Hit Streak 20 | 7 10 20 8 Robot Miss Streak 5 | 4 5 4 4 Penetration Max . | . . . . Secondary Targets 1 | . . 1 . Max Gunslinging Chain 1 | . . 1 . Shots Hit Robots 207 | 13 94 62 38 Core Hits 98 | 5 35 29 29 Critical Kills . | . . . . Critical Parts Destroyed 2 | . 1 1 . Critical Strikes 2 | . 1 1 . Destroy 2 | . 1 1 . Melee Attacks . | . . . . Impact . | . . . . Slashing . | . . . . Piercing . | . . . . Sneak Attacks . | . . . . Combat Hostiles . | . . . . Follow-up Attacks . | . . . . Damage Inflicted 3182 | 129 1132 893 1028 Guns 2330 | 129 880 719 602 Cannons 105 | . 105 . . Explosions 720 | . 147 147 426 Melee . | . . . . Ramming 21 | . . 21 . Kinetic 1792 | 129 816 719 128 Thermal 500 | . 169 6 325 Explosive 395 | . 147 147 101 Electromagnetic 474 | . . . 474 Impact . | . . . . Slashing . | . . . . Piercing . | . . . . Highest Corruption . | . . . . Average Corruption . | . . . . Corruption Purged . | . . . . Corruption Blocked . | . . . . Overload Shots . | . . . . Overflow Damage 53 | . 22 . 31 Projectiles 6 | . 6 . . Explosions 47 | . 16 . 31 Melee . | . . . . Knockbacks 1 | . . 1 . Impact 1 | . . 1 . Kinetic . | . . . . Secondary . | . . . . Self-Inflicted Damage 153 | . . . 153 Shots 4 | . . . 4 Rammed 9 | . . 8 1 Targets Rammed 10 | . . 9 1 Kicked . | . . . . Crushed 1 | . . 1 . Highest Temperature 221 | . 100 6 221 Average Temperature 38 | . 25 3 53 Received Heat Transfer 1560 | . 363 576 621 Effects 1 | . . . 1 Interference 1 | . . . 1 Siege Activations . | . . . . Martial Activations . | . . . . Shielding Activations . | . . . . Robots Disrupted . | . . . . Combat Hostiles . | . . . . Robots Corrupted . | . . . . Combat Hostiles . | . . . . Parts Fried 2 | . . . 2 Impact Corruptions . | . . . . Robots Melted . | . . . . Combat Hostiles . | . . . . Parts Melted 1 | . 1 . . Heat Transferred 772 | . 372 50 350 Parts Sabotaged . | . . . . Parts Stolen . | . . . . Parts Stripped . | . . . . Power Chain Reactions 3 | . . . 3 Alert | -11 -10 -9 -8 ------- Run | Yrd Mat Mat Mat Maximum Alert Level . | . . . . Low Security (%) 100 | 100 100 100 100 Level 1 . | . . . . Level 2 . | . . . . Level 3 . | . . . . Level 4 . | . . . . Level 5 . | . . . . High Security . | . . . . Max Security . | . . . . Peak Influence 136 | 5 95 136 70 Initial 32 | . . 13 32 Average 23 | . 24 35 14 Influence Increases 1022 | 10 393 333 286 Destroy 0b10 Robot/C 640 | . 220 240 180 Destroy 0b10 Robot/NC 110 | 10 45 20 35 Destroy Leader 114 | . 56 34 24 Disable Machine 45 | . . 30 15 Destroy Structure 38 | . 12 9 17 Lose Combat Pursuer 75 | . 60 . 15 Influence Decreases 1022 | 10 360 289 363 Entered New Map 65 | . . 20 45 Time Decay 742 | 10 297 217 218 Lost Part 215 | . 63 52 100 Squads Dispatched 5 | . 3 . 2 Investigation 1 | . 1 . . Extermination . | . . . . Reinforcement 4 | . 2 . 2 Assault . | . . . . Garrison . | . . . . Intercept . | . . . . Searches Triggered . | . . . . Construction Impeded . | . . . . Haulers Reinforced . | . . . . Active Scanning Responses . | . . . . Cargo Convoy Interrupts . | . . . . Stealth | -11 -10 -9 -8 --------- Run | Yrd Mat Mat Mat Distress Signals 5 | . . 4 1 Communications Jammed . | . . . . Distress Signals . | . . . . Times Spotted 63 | . 26 21 16 Peak Tracking Total 8 | . 4 8 4 Tactical Retreats 4 | . 3 . 1 Traps | -11 -10 -9 -8 ------- Run | Yrd Mat Mat Mat Traps Triggered 2 | . 1 . 1 Indirectly . | . . . . Trap Hack Attempts . | . . . . Triggered . | . . . . Disarmed . | . . . . Reprogrammed . | . . . . Reused . | . . . . Traps Extracted . | . . . . Installed . | . . . . Triggered . | . . . . Machines | -11 -10 -9 -8 ---------- Run | Yrd Mat Mat Mat Machines Disabled 3 | . . 2 1 Max in Single Turn 1 | . . 1 1 Garrison Access 1 | . . . 1 Machines Repaired . | . . . . Machines Dismantled . | . . . . Machines Sabotaged . | . . . . Overloaded Fab Kills . | . . . . Hacking | -11 -10 -9 -8 --------- Run | Yrd Mat Mat Mat Machines Accessed 1 | . . . 1 Terminals . | . . . . Fabricators . | . . . . Repair Stations . | . . . . Recycling Units . | . . . . Scanalyzers . | . . . . Garrison Access 1 | . . . 1 Total Hacks 3 | . . . 3 Successful 1 | . . . 1 Failed 2 | . . . 2 Catastrophic . | . . . . Database Lockouts . | . . . . Manual . | . . . . Terminals . | . . . . Fabricators . | . . . . Repair Stations . | . . . . Recycling Units . | . . . . Scanalyzers . | . . . . Garrison Access 3 | . . . 3 Terminal Hacks . | . . . . Fabricator Hacks . | . . . . Repair Station Hacks . | . . . . Recycling Unit Hacks . | . . . . Scanalyzer . | . . . . Garrison Access Hacks 1 | . . . 1 Seal Access 1 | . . . 1 Unauthorized Hacks . | . . . . Terminals . | . . . . Fabricators . | . . . . Repair Stations . | . . . . Recycling Units . | . . . . Scanalyzers . | . . . . Garrison Access . | . . . . Data Cores Recovered . | . . . . Used . | . . . . Hacking Detections . | . . . . Full Trace Events . | . . . . Feedback Events . | . . . . Feedback Blocked . | . . . . Robot Schematics Acquired . | . . . . Robots Built . | . . . . Authchips . | . . . . Time . | . . . . Total Robot Build Rating . | . . . . Part Schematics Acquired . | . . . . Parts Built . | . . . . Authchips . | . . . . Time . | . . . . Total Part Build Rating . | . . . . Parts Repaired . | . . . . Time . | . . . . Parts Recycled . | . . . . Recycled Matter . | . . . . Retrieved Matter . | . . . . Retrieved Components . | . . . . Parts Scanalyzed . | . . . . Part Schematics Acquired . | . . . . Parts Damaged . | . . . . Bothacking | -11 -10 -9 -8 ------------ Run | Yrd Mat Mat Mat Used RIF Installer . | . . . . Robots Hacked . | . . . . Non-combat . | . . . . Combat . | . . . . Robot Hacks Applied . | . . . . Relay Couplers Released . | . . . . Fabnet Peak Effective % . | . . . . Robots Rewired . | . . . . Allies Hacked . | . . . . Hacks Repelled . | . . . . Allies | -11 -10 -9 -8 -------- Run | Yrd Mat Mat Mat Total Allies . | . . . . Largest Group . | . . . . Highest-Rated Group . | . . . . Highest-Rated Ally . | . . . . Total Orders . | . . . . Ally Attacks . | . . . . Total Damage . | . . . . Kills . | . . . . Allies Corrupted . | . . . . Allies Melted . | . . . . Intel | -11 -10 -9 -8 ------- Run | Yrd Mat Mat Mat Active Infowar (turns) 1919 | . 543 584 792 Sensors 63 | . . 63 . Terrain 179 | . 179 . . Structural 1313 | . . 521 792 Seismic 534 | . 534 . . Robot Analysis Total . | . . . . Derelict Logs Recovered . | . . . . Drone Launches . | . . . . Drone Recoveries . | . . . . Exploration | -11 -10 -9 -8 ------------- Run | Yrd Mat Mat Mat Turns Passed 3190 | 93 1392 799 906 Spaces Moved 1261 | 43 657 269 292 Core 104 | 19 60 10 15 Treads 451 | . . 181 270 Legs 3 | . 3 . . Wheels 703 | 24 594 78 7 Hover . | . . . . Flight . | . . . . Fastest Speed 50 | 50 80 110 160 Average Speed 195 | 66 163 220 263 Slowest Speed 750 | 80 750 750 750 Overloaded Moves . | . . . . Propulsion Burnouts . | . . . . Robots Hopped . | . . . . Potential Cave-ins . | . . . . Cave-ins Triggered . | . . . . Exploration Rate (%) 30 | 4 61 28 30 Regions Visited 3 Branch Regions . Pre-discovered Areas . | . . . . Known Exits Taken . | . . . . Unknown Exits Taken 3 | 1 1 1 . Scrap Searched . | . . . . Spaces Dug 2 | . 2 . . Terrain Destroyed 35 | . 11 9 15 Melee . | . . . . Projectile 2 | . 2 . . AOE 33 | . 9 9 15 Terrain Rammed . | . . . . Walls Destroyed . | . . . . Machines Disabled . | . . . . Actions | -11 -10 -9 -8 --------- Run | Yrd Mat Mat Mat Total 1684 | 87 843 387 367 Wait 61 | 21 20 6 14 Move 1258 | 42 656 268 292 Hop . | . . . . Pick Up 52 | 8 17 17 10 Fast Attach . | . . . . Attach 41 | 5 14 16 6 Detach . | . . . . Swap 1 | . 1 . . Drop 13 | . 4 3 6 Fire 248 | 11 131 68 38 Melee . | . . . . Ram 1 | . . . 1 Kick . | . . . . Crush 9 | . . 9 . Escape Stasis . | . . . . Rewire . | . . . . Trap . | . . . . Miscellaneous . | . . . . Route ------- -11/Scrapyard -10/Materials (discovered 2 exits: *Mat / [*Min]) -9/Materials -8/Materials History --------- Turn | Location | Event 2 | -11/Scrapyard | Met Revision 17 6 | -11/Scrapyard | Discovered new exit (range 16) 94 | -11/Scrapyard | Entered Materials 171 | -10/Materials | Discovered new exit (range 11) 289 | -10/Materials | Discovered new exit (range 16) 314 | -10/Materials | Build established: Mutant 620 | -10/Materials | Core integrity fell below 50% 648 | -10/Materials | Core integrity fell below 20% 668 | -10/Materials | Lost 3 parts (1n1u1w) 1233 | -10/Materials | Lost 3 parts (2n1w) 1486 | -10/Materials | Entered another Materials area 1486 | -9/Materials | Evolved 2 slots: Utility x1, Weapon x1 1649 | -9/Materials | Lost 4 parts (1p2n1w) 1680 | -9/Materials | Core integrity fell below 50% 1885 | -9/Materials | Core integrity fell below 20% 1925 | -9/Materials | Lost 3 parts (2n1u) 1968 | -9/Materials | Discovered new exit (range 10) 2040 | -9/Materials | Build established: Scavenger-Mutant 2285 | -9/Materials | Entered another Materials area 2285 | -8/Materials | Evolved 2 slots: Propulsion x2 2372 | -8/Materials | Build established: Scavenger-Tank 2801 | -8/Materials | Lost 3 parts (1n2w) 3072 | -8/Materials | Build established: Mutant 3103 | -8/Materials | Core integrity fell below 50% 3125 | -8/Materials | Lost 7 parts (1p2n1u3w) 3163 | -8/Materials | Core integrity fell below 20% 3191 | -8/Materials | Destroyed by G-47 Trooper with Particle Gun Last Messages --------------- 03075_ Chain reaction triggered in Imp. Ion Engine. 03075_ G-47 Trooper destroyed. 03075_ Imp. EM Shotgun destroyed. 03075_ Destroyed Imp. EM Shotgun. 03075_ Hvy. Ion Engine destroyed. 03075_ Destroyed Hvy. Ion Engine. 03075_ Atomic Centrifuge disabled. 03077_ Structural Scanner severed. 03085_ Critical hit (Burn: +37). 03088_ U-05 Engineer lays Concrete. 03091_ U-05 Engineer builds a Wall. 03093_ U-05 Engineer destroyed. 03094_ Rocket Launcher destroyed. 03100_ L-31 Rogue destroyed. 03118_ K-01 Serf collects debris. 03120_ Slammed into U-05 Engineer. 03123_ K-01 Serf collects debris. 03162_ ALERT: Suspicious intruders detected, dispatching Specialist reinforcements to area. Map ----- +----------------------------------------------------+ | ??????????????????????????????????????????????? | | ??????????????????????????????????????????????? | | ??????????????????????????????????????????????? | | ??????????????????????????????????????????????? | | ??????????????????????????????????????????????? | | ??????????????????????????????????????????????? | | ??????????????????????????????????????????????? | | ??????????????????????????????????????????????? | | ??????????????????????????????????????????????? | | ??????????????????????????????????????????????? | | ??????????????????????????????????????????????? | | ??????????????????????????????????????????????? | | ??????????????????????????????????????????????? | | ??????????????????????????????????????????????? | | ???????????????????????????????????????????###? | | ???????????????????????????? ############??###? | | ???????????????????????????? ################ ? | | ???????????????????????????? # ###### | | ???????????????????????????? # "## # | | ???????????H???????????????? # T##" # | | ???????????????????????????? # "##T # | | ???????????????????????????? # """ ##" # | | ??????????????#####+####????## ## [# | | ??????????????# k #????## ## # | | ??????????????# ! #????## %= ## # | | ??????????????# @#????#### =!#######+### | | ??????????????# #????#### %=%%! | | ??????????????# g######## ! *== | | ??????????????# + % = | | ??????????????# [ / ########### ######+### | | ??????????????# [ #? # # | | ??????????????# ! #??????????!! # # | | ??????????????##########???????????! # """ # | | ???????????????????????????????????! # """ # | | ??????????????????????????????????? # """ # | | ???????????????????????????????????? # # | | ????????????????????????????????????##########= | | ????????????????????????????????????? # | | ?????????????????????????????????????????????## | | ?????????????????????????????????????????????## | | ??????????????????????????????????????????????? | | ??????????????????????????????????????????????? | | ??????????????????????????????????????????????? | | ??????????????????????????????????????????????? | | ??????????????????????????????????????????????? | | ??????????????????????????????????????????????? | | ??????????????????????????????????????????????? | | ??????????????????????????????????????????????? | | ??????????????????????????????????????????????? | | ??????????????????????????????????????????????? | +----------------------------------------------------+ Best States ------------- Heat Dissipation 31 Energy Generation 14 Energy Capacity 280 Matter Stores 300 Matter Capacity 300 Sight Range 16 Robot Scan Range 14 Terrain Scan Range 16 Terrain Scan Density 10 Armor Coverage 225 Evasion (%) 50 Recoil Reduction 3 Item Schematics ----------------- None Robot Schematics ------------------ None Fabricated ------------ Nothing Repaired ---------- Nothing Alien Tech Used ----------------- None Achievements -------------- None Challenges ------------ None Game ------ Seed IonGravmagArticulator Manual? 0 Play Time 00:33:54 Cumulative 28.9 hours Start 2025.10.12 @ 10:28:32 End 2025.10.12 @ 11:21:26 Sessions 1 Manual Loads 0 Difficulty Rogue Special Mode None Game No. 43 Rogue 16 Adventurer 0 Explorer 27 Win Type - Total 0 Types 0/0/0/0/0/0/0/0/0/0 Lore% 19 Gallery% 34 Achievement% 27 Wizard Run 0 Options --------- Layout 1 ASCII 0 Keyboard 0 Movement Mouse Keybinds 0 Fullscreen 2 Font 16/SmallcapsGlow Map View 50x35 Zoom Use 0% Tactical HUD 1 Map Filters NONE Filters NONE Steam X RUN: 0c2cc9d9-02d3-4580-8685-8125b8e07120